fUST/lending_fUST_20250610
["ID","MTS","AMOUNT","RATE_DAILY","PERIOD"]
[365232169,1749558647635,-460.0,0.00023561,4]
[365232170,1749558647644,-460.0,0.00023561,4]
[365232171,1749558647654,-460.0,0.00023561,4]
[365232172,1749558647664,-460.0,0.00023561,4]
[365232173,1749558647674,-460.0,0.00023561,4]
[365232174,1749558647683,-283.10091304,0.00023561,4]
[365232175,1749558647693,-460.0,0.00023561,4]
[365232176,1749558647703,-460.0,0.00023561,4]
[365232177,1749558647713,-460.0,0.00023561,4]
[365232178,1749558647722,-632.11,0.00023561,4]
[365232179,1749558647732,-460.0,0.00023561,4]
[365232180,1749558647742,-2820.8,0.00023561,4]
[365232181,1749558647751,-460.0,0.00023561,4]
[365232182,1749558647761,-460.0,0.00023561,4]
[365232183,1749558647771,-992.29,0.00023561,4]
[365232184,1749558647781,-190.0,0.00023561,4]
[365232185,1749558647790,-3345.9,0.00023561,4]
[365232186,1749558647800,-2608.83,0.00023561,4]
[365232187,1749558647809,-3150.63,0.00023561,4]
[365232188,1749558647820,-460.0,0.00023561,4]
[365232189,1749558647829,-461.14,0.00023561,4]
[365232190,1749558647839,-460.0,0.00023561,4]
[365232191,1749558647849,-460.0,0.00023561,4]
[365232192,1749558647858,-1994.97,0.00023561,4]
[365232193,1749558647867,-460.0,0.00023561,4]
[365232194,1749558647878,-1966.91,0.00023561,4]
[365232195,1749558647891,-2759.7,0.00023561,4]
[365232196,1749558647900,-460.0,0.00023561,4]
[365232197,1749558647910,-1001.74153471,0.0002357,2]
[365232198,1749558647921,-500.0,0.0002357,2]
[365232199,1749558647930,-1000.0,0.0002357,2]
[365232200,1749558647939,-505.162816,0.00023592,2]
[365232201,1749558647949,-6121.0000003,0.00023613,7]
[365232202,1749558647958,-1726.53400946,0.00023659,9]
[365232203,1749558647968,-254.528299,0.00023663,7]
[365232204,1749558647978,-254.528299,0.00023663,7]
[365232205,1749558647987,-8580.89,0.00023685,2]
[365232206,1749558647996,-6478.71588292,0.0002369,2]
[365232207,1749558648006,-12507.31,0.00023699,11]
[365232208,1749558648015,-315.18454239,0.000237,7]
[365232209,1749558648024,-213.1263252,0.000237,7]
[365232210,1749558648034,-213.1263252,0.000237,7]
[365232211,1749558648043,-379.83764358,0.0002376,2]
[365232212,1749558648053,-320655.24297163,0.0002376,2]
[365232213,1749558648063,-564.86,0.0002379,3]
[365232214,1749558648072,-1726.53400946,0.00023797,9]
[365232215,1749558648082,-1.37065822,0.000238,3]
[365232216,1749558648091,-158.054553,0.000238,7]
[365232217,1749558648190,-131474.5559284,0.000238,3]
[365232218,1749558648200,-151.0,0.000238,7]
[365232219,1749558648211,-160.0,0.000238,3]
[365232220,1749558648221,-151.0,0.000238,7]
[365232221,1749558648231,-151.0,0.000238,7]
[365232222,1749558648240,-1744.0,0.000238,3]
[365232223,1749558648249,-151.73273,0.000238,7]
[365232224,1749558648259,-229.6792923,0.000238,3]
[365232225,1749558648268,-151.0,0.000238,7]
[365232226,1749558648278,-151.150968,0.000238,7]
[365232227,1749558648288,-834.9046531,0.000238,3]
[365232228,1749558648297,-151.0,0.000238,7]
[365232229,1749558648307,-160.0,0.000238,3]
[365232230,1749558648317,-424.12530924,0.000238,3]
[365232231,1749558648326,-151.0,0.000238,7]
[365232232,1749558648336,-151.0,0.000238,7]
[365232233,1749558648345,-182.64296,0.000238,7]
[365232234,1749558648355,-476.81551,0.000238,7]
[365232235,1749558648365,-476.81551,0.000238,7]
[365232236,1749558648374,-194.618273,0.000238,7]
[365232237,1749558648384,-194.618273,0.000238,7]
[365232238,1749558648393,-213.1263252,0.000238,3]
[365232239,1749558648404,-151.0,0.000238,7]
[365232240,1749558648414,-151.0,0.000238,7]
[365232241,1749558648423,-254.528299,0.000238,7]
[365232242,1749558648432,-306.04405294,0.000238,3]
[365232243,1749558648442,-254.528302,0.000238,7]
[365232244,1749558648452,-424.12530924,0.000238,3]
[365232245,1749558648462,-229.6792923,0.000238,3]
[365232246,1749558648472,-834.9046531,0.000238,3]
[365232247,1749558648481,-160.0,0.000238,3]
[365232248,1749558648492,-127779.56241154,0.000238,3]
[365232249,1749558648502,-11858.11761888,0.000238,3]
[365232250,1749558648512,-1322.0,0.00023803,2]
[365232251,1749558648522,-6478.71588283,0.00023805,2]
[365232252,1749558648541,-500.0,0.00023809,9]
[365232253,1749558648554,-460.0,0.00023835,4]
[365232254,1749558648564,-460.0,0.00023835,4]
[365232255,1749558648574,-460.0,0.00023835,2]
[365232256,1749558648584,-460.0,0.00023835,4]
[365232257,1749558648594,-460.0,0.00023835,4]
[365232258,1749558648604,-723.09,0.00023835,4]
[365232259,1749558648614,-460.0,0.00023835,4]
[365232260,1749558648624,-2883.13,0.00023835,4]
[365232261,1749558648634,-460.0,0.00023835,4]
[365232262,1749558648645,-470.19,0.00023835,4]
[365232263,1749558648656,-460.0,0.00023835,4]
[365232264,1749558648666,-460.0,0.00023835,4]
[365232265,1749558648676,-460.0,0.00023835,4]
[365232266,1749558648687,-225.54,0.00023835,4]
[365232267,1749558648698,-460.0,0.00023835,4]
[365232268,1749558648708,-460.0,0.00023835,4]
[365232269,1749558648719,-595.5047205,0.00023835,4]
[365232270,1749558648730,-460.0,0.00023835,4]
[365232271,1749558648741,-1271.1,0.00023835,4]
[365232272,1749558648751,-460.0,0.00023835,4]
[365232273,1749558648762,-460.0,0.00023835,4]
[365232274,1749558648772,-460.0,0.00023835,4]
[365232275,1749558648783,-460.0,0.00023835,4]
[365232276,1749558648794,-460.0,0.00023835,4]
[365232277,1749558648804,-460.0,0.00023835,4]
[365232278,1749558648815,-170.0,0.00023835,4]
[365232279,1749558648825,-460.0,0.00023835,4]
[365232280,1749558648835,-460.0,0.00023835,4]
[365232281,1749558648846,-460.0,0.00023835,4]
[365232282,1749558648856,-632.11,0.00023835,4]
[365232283,1749558648866,-460.0,0.00023835,4]
[365232284,1749558648877,-2820.8,0.00023835,4]
[365232285,1749558648892,-460.0,0.00023835,4]
[365232286,1749558648902,-460.0,0.00023835,4]
[365232287,1749558648912,-992.29,0.00023835,4]
[365232288,1749558648922,-3345.9,0.00023835,4]
[365232289,1749558648932,-2608.83,0.00023835,4]
[365232290,1749558648942,-3150.63,0.00023835,4]
[365232291,1749558648953,-460.0,0.00023835,4]
[365232292,1749558648964,-461.14,0.00023835,4]
[365232293,1749558648973,-460.0,0.00023835,4]
[365232294,1749558648983,-460.0,0.00023835,4]
[365232295,1749558648993,-1994.97,0.00023835,4]
[365232296,1749558649003,-292.27223512,0.00023835,4]
[365232297,1749558649013,-1966.91,0.00023835,4]
[365232298,1749558649023,-2759.7,0.00023835,4]
[365232299,1749558649033,-460.0,0.00023835,4]
[365232300,1749558649043,-194.618273,0.0002385,7]
[365232301,1749558649053,-194.618273,0.0002385,7]
[365232302,1749558649063,-45082.01,0.000239,2]
[365232303,1749558649074,-151.0,0.000239,7]
[365232304,1749558649084,-151.0,0.000239,7]
[365232305,1749558649094,-194.618273,0.000239,7]
[365232306,1749558649103,-194.618273,0.000239,7]
[365232307,1749558649114,-1322.0,0.0002391,2]
[365232308,1749558649124,-6478.71588283,0.0002392,2]
[365232309,1749558649135,-1726.53400946,0.00023934,10]
[365232310,1749558649145,-500.41221055,0.00023973,2]
[365232311,1749558649155,-500.0,0.00023973,2]
[365232312,1749558649164,-501.02088772,0.00023973,2]
[365232313,1749558649174,-500.0,0.00023973,2]
[365232314,1749558649184,-500.0,0.00023973,2]
[365232315,1749558649194,-500.0,0.00023973,2]
[365232316,1749558649204,-500.0,0.00023973,2]
[365232317,1749558649214,-502.56944552,0.00023973,2]
[365232318,1749558649224,-573.3540349,0.00023973,2]
[365232319,1749558649233,-176.8341807,0.00023973,2]
[365232320,1749558649244,-413.4953297,0.00023973,2]
[365232321,1749558649254,-158.7504224,0.00023973,2]
[365232322,1749558649264,-444.256621,0.00023973,2]
[365232323,1749558649274,-176.8341807,0.00023973,2]
[365232324,1749558649284,-153.0,0.00023973,2]
[365232325,1749558649294,-176.8341807,0.00023973,2]
[365232326,1749558649304,-176.8341807,0.00023973,2]
[365232327,1749558649314,-587.0,0.00023988,2]
[365232328,1749558649324,-160.47005698,0.00023999,2]
[365232329,1749558649333,-200.0,0.00023999,2]
[365232330,1749558649343,-200.0,0.00023999,2]
[365232331,1749558649353,-1000.0,0.00023999,12]
[365232332,1749558649362,-2000.0,0.00024,2]
[365232333,1749558649371,-2000.0,0.00024,2]
[365232334,1749558649380,-2000.0,0.00024,2]
[365232335,1749558649389,-2000.0,0.00024,2]
[365232336,1749558649399,-92522.294,0.00024,30]
[365232337,1749558649408,-2000.0,0.00024,15]
[365232338,1749558649417,-1684.2946977,0.00024,2]
[365232339,1749558649427,-10095.63409701,0.00024,2]
[365232340,1749558649436,-29411.55621083,0.00024,2]
[365232341,1749558649445,-451.02810955,0.00024,2]
[365232342,1749558649454,-15000.0,0.00024,2]
[365232343,1749558649463,-487.0,0.00024,60]
[365232344,1749558649472,-10843.79664224,0.00024,7]
[365232345,1749558649481,-151.0,0.00024,7]
[365232346,1749558649490,-1000.0,0.00024,24]
[365232347,1749558649500,-65535.33018415,0.00024,2]
[365232348,1749558649509,-9608.52808326,0.00024,2]
[365232349,1749558649519,-151.0,0.00024,7]
[365232350,1749558649528,-151.0,0.00024,7]
[365232351,1749558649538,-151.0,0.00024,7]
[365232352,1749558649547,-151.0,0.00024,7]
[365232353,1749558649556,-288.66,0.00024,7]
[365232354,1749558649566,-1031.09,0.00024,7]
[365232355,1749558649575,-151.0,0.00024,7]
[365232356,1749558649584,-151.778115,0.00024,7]
[365232357,1749558649593,-151.0,0.00024,7]
[365232358,1749558649603,-151.0,0.00024,7]
[365232359,1749558649612,-151.0,0.00024,7]
[365232360,1749558649622,-151.0,0.00024,7]
[365232361,1749558649631,-152.922554,0.00024,7]
[365232362,1749558649641,-151.0,0.00024,7]
[365232363,1749558649651,-152.927514,0.00024,7]
[365232364,1749558649661,-160.0,0.00024,7]
[365232365,1749558649670,-11858.11761888,0.00024,30]
[365232366,1749558649680,-424.12530924,0.00024,7]
[365232367,1749558649689,-834.9046531,0.00024,7]
[365232368,1749558649698,-160.0,0.00024,7]
[365232369,1749558649708,-322.405961,0.00024,7]
[365232370,1749558649718,-315.18454239,0.00024,30]
[365232371,1749558649727,-229.6792923,0.00024,7]
[365232372,1749558649736,-159.053297,0.00024,7]
[365232373,1749558649745,-268.0,0.00024,7]
[365232374,1749558649754,-151.0,0.00024,7]
[365232375,1749558649763,-158.054553,0.00024,7]
[365232376,1749558649773,-151.0,0.00024,7]
[365232377,1749558649783,-160.0,0.00024,7]
[365232378,1749558649792,-834.9046531,0.00024,7]
[365232379,1749558649801,-842.5625,0.00024,30]
[365232380,1749558649811,-151.0,0.00024,7]
[365232381,1749558649821,-151.0,0.00024,7]
[365232382,1749558649834,-151.0,0.00024,7]
[365232383,1749558649843,-151.0,0.00024,7]
[365232384,1749558649852,-151.0,0.00024,7]
[365232385,1749558649862,-151.0,0.00024,7]
[365232386,1749558649871,-315.18454239,0.00024,7]
[365232387,1749558649883,-160.0,0.00024,7]
[365232388,1749558649893,-315.18454239,0.00024,30]
[365232389,1749558649902,-151.0,0.00024,7]
[365232390,1749558649911,-151.0,0.00024,7]
[365232391,1749558649920,-151.0,0.00024,7]
[365232392,1749558649930,-151.0,0.00024,7]
[365232393,1749558649939,-151.0,0.00024,7]
[365232394,1749558649948,-151.0,0.00024,7]
[365232395,1749558649959,-229.6792923,0.00024,7]
[365232396,1749558649968,-229.6792923,0.00024,7]
[365232397,1749558649977,-834.9046531,0.00024,7]
[365232398,1749558649987,-151.0,0.00024,7]
[365232399,1749558649996,-151.0,0.00024,7]
[365232400,1749558650006,-151.0,0.00024,7]
[365232401,1749558650015,-151.0,0.00024,7]
[365232402,1749558650024,-476.81551,0.00024,7]
[365232403,1749558650034,-476.81551,0.00024,7]
[365232404,1749558650043,-194.618273,0.00024,7]
[365232405,1749558650057,-194.618273,0.00024,7]
[365232406,1749558650150,-194.618273,0.00024,7]
[365232407,1749558650170,-194.618273,0.00024,7]
[365232408,1749558650180,-194.618273,0.00024,7]
[365232409,1749558650190,-194.618273,0.00024,7]
[365232410,1749558650199,-194.618273,0.00024,7]
[365232411,1749558650215,-194.618273,0.00024,7]
[365232412,1749558650226,-151.0,0.00024,7]
[365232413,1749558650235,-379.83764358,0.00024,2]
[365232414,1749558650245,-227.196283,0.00024,7]
[365232415,1749558650254,-424.12530924,0.00024,7]
[365232416,1749558650264,-315.18454239,0.00024,30]
[365232417,1749558650273,-834.9046531,0.00024,7]
[365232418,1749558650283,-500.0,0.00024,2]
[365232419,1749558650293,-500.0,0.00024,2]
[365232420,1749558650302,-160.0,0.00024,7]
[365232421,1749558650311,-10000.0,0.00024,7]
[365232422,1749558650321,-1322.0,0.00024032,2]
[365232423,1749558650330,-1046.36703838,0.00024034,2]
[365232424,1749558650340,-507.1497287,0.00024034,2]
[365232425,1749558650349,-1500.0,0.00024034,2]
[365232426,1749558650359,-1515.99892743,0.00024034,2]
[365232427,1749558650369,-505.49959301,0.00024034,2]
[365232428,1749558650378,-1005.70812789,0.00024034,2]
[365232429,1749558650387,-1011.04353308,0.00024034,2]
[365232430,1749558650397,-1500.0,0.00024034,2]
[365232431,1749558650407,-1496.96870263,0.00024034,2]
[365232432,1749558650416,-1000.51997198,0.00024034,2]
[365232433,1749558650425,-1500.0,0.00024034,2]
[365232434,1749558650435,-1010.64438529,0.00024034,2]
[365232435,1749558650444,-1500.0,0.00024034,2]
[365232436,1749558650454,-1500.0,0.00024034,2]
[365232437,1749558650463,-6478.71588283,0.00024035,2]
[365232438,1749558650472,-1500.0,0.00024038,2]
[365232439,1749558650481,-1500.0,0.00024038,2]
[365232440,1749558650493,-507.22502122,0.00024038,2]
[365232441,1749558650502,-1500.0,0.00024038,2]
[365232442,1749558650512,-1800.0,0.00024038,2]
[365232443,1749558650521,-643.13564924,0.00024041,30]
[365232444,1749558650531,-7525.14471575,0.00024056,2]
[365232445,1749558650541,-5000.0,0.00024056,2]
[365232446,1749558650550,-5000.0,0.00024056,2]
[365232447,1749558650559,-5000.0,0.00024056,2]
[365232448,1749558650569,-5000.0,0.00024056,2]
[365232449,1749558650579,-160.0,0.00024064,4]
[365232450,1749558650588,-306.79764681,0.00024064,5]
[365232451,1749558650598,-1726.53400946,0.00024072,10]
[365232452,1749558650607,-200.0,0.00024077,2]
[365232453,1749558650616,-9038.12541567,0.00024078,2]
[365232454,1749558650626,-5000.0,0.00024078,2]
[365232455,1749558650635,-5000.0,0.00024078,2]
[365232456,1749558650644,-151.0,0.00024078,7]
[365232457,1749558650654,-151.0,0.00024078,7]
[365232458,1749558650663,-2000.0,0.000241,2]
[365232459,1749558650672,-2000.0,0.000241,30]
[365232460,1749558650682,-9889.54128746,0.000241,2]
[365232461,1749558650691,-2000.0,0.000241,7]
[365232462,1749558650700,-2000.0,0.000241,7]
[365232463,1749558650709,-2000.0,0.000241,7]
[365232464,1749558650719,-2000.0,0.000241,7]
[365232465,1749558650728,-2000.0,0.000241,7]
[365232466,1749558650738,-151.0,0.000241,7]
[365232467,1749558650747,-151.0,0.000241,7]
[365232468,1749558650756,-158.592287,0.000241,7]
[365232469,1749558650765,-151.0,0.000241,7]
[365232470,1749558650774,-322.405961,0.000241,7]
[365232471,1749558650784,-151.0,0.000241,9]
[365232472,1749558650793,-151.0,0.000241,7]
[365232473,1749558650802,-194.618273,0.000241,7]
[365232474,1749558650811,-194.618273,0.000241,7]
[365232475,1749558650820,-200.0,0.00024108,2]
[365232476,1749558650829,-200.0,0.00024108,2]
[365232477,1749558650838,-151.0,0.00024109,7]
[365232478,1749558650847,-460.0,0.00024109,4]
[365232479,1749558650856,-460.0,0.00024109,4]
[365232480,1749558650866,-460.0,0.00024109,2]
[365232481,1749558650876,-460.0,0.00024109,4]
[365232482,1749558650890,-219.7414228,0.00024109,7]
[365232483,1749558650899,-460.0,0.00024109,4]
[365232484,1749558650908,-723.09,0.00024109,4]
[365232485,1749558650917,-190.0,0.00024109,4]
[365232486,1749558650928,-2883.13,0.00024109,4]
[365232487,1749558650937,-460.0,0.00024109,4]
[365232488,1749558650947,-470.19,0.00024109,4]
[365232489,1749558650957,-460.0,0.00024109,4]
[365232490,1749558650967,-460.0,0.00024109,4]
[365232491,1749558650976,-460.0,0.00024109,4]
[365232492,1749558650986,-460.0,0.00024109,4]
[365232493,1749558650996,-460.0,0.00024109,4]
[365232494,1749558651005,-460.0,0.00024109,4]
[365232495,1749558651015,-1271.1,0.00024109,4]
[365232496,1749558651025,-590.0,0.00024109,4]
[365232497,1749558651035,-460.0,0.00024109,4]
[365232498,1749558651045,-460.0,0.00024109,4]
[365232499,1749558651055,-460.0,0.00024109,4]
[365232500,1749558651064,-460.0,0.00024109,4]
[365232501,1749558651074,-460.0,0.00024109,4]
[365232502,1749558651084,-460.0,0.00024109,4]
[365232503,1749558651093,-460.0,0.00024109,4]
[365232504,1749558651103,-460.0,0.00024109,4]
[365232505,1749558651112,-632.11,0.00024109,4]
[365232506,1749558651121,-460.0,0.00024109,4]
[365232507,1749558651131,-460.0,0.00024109,4]
[365232508,1749558651140,-460.0,0.00024109,4]
[365232509,1749558651150,-460.0,0.00024109,4]
[365232510,1749558651160,-460.0,0.00024109,4]
[365232511,1749558651170,-460.0,0.00024109,4]
[365232512,1749558651179,-151.0,0.00024109,7]
[365232513,1749558651189,-194.618273,0.00024109,7]
[365232514,1749558651198,-194.618273,0.00024109,7]
[365232515,1749558651209,-460.0,0.00024109,4]
[365232516,1749558651219,-460.0,0.00024109,4]
[365232517,1749558651228,-992.29,0.00024109,4]
[365232518,1749558651237,-3345.9,0.00024109,4]
[365232519,1749558651249,-2608.83,0.00024109,4]
[365232520,1749558651258,-3150.63,0.00024109,4]
[365232521,1749558651268,-460.0,0.00024109,4]
[365232522,1749558651278,-461.14,0.00024109,4]
[365232523,1749558651289,-460.0,0.00024109,4]
[365232524,1749558651299,-460.0,0.00024109,4]
[365232525,1749558651310,-1994.97,0.00024109,4]
[365232526,1749558651319,-1966.91,0.00024109,4]
[365232527,1749558651330,-2759.7,0.00024109,4]
[365232528,1749558651339,-460.0,0.00024109,4]
[365232529,1749558651349,-555.29053022,0.00024118,2]
[365232530,1749558651359,-800.0,0.00024127,2]
[365232531,1749558651369,-200.0,0.00024149,2]
[365232532,1749558651378,-6478.71588283,0.0002415,2]
[365232533,1749558651387,-7457.15485272,0.0002415,2]
[365232534,1749558651397,-5000.0,0.0002415,2]
[365232535,1749558651407,-5000.0,0.0002415,2]
[365232536,1749558651416,-5000.0,0.0002415,2]
[365232537,1749558651426,-5000.0,0.0002415,2]
[365232538,1749558651437,-5000.0,0.0002415,2]
[365232539,1749558651447,-151.0,0.0002415,7]
[365232540,1749558651456,-152.506112,0.0002415,7]
[365232541,1749558651465,-151.0,0.0002415,7]
[365232542,1749558651474,-194.618273,0.0002415,7]
[365232543,1749558651483,-194.618265,0.0002415,7]
[365232544,1749558651494,-165.0,0.00024164,7]
[365232545,1749558651503,-158.054553,0.00024176,7]
[365232546,1749558651513,-161.33469475,0.00024185,2]
[365232547,1749558651522,-18011.00452126,0.00024186,7]
[365232548,1749558651532,-151.0,0.00024186,7]
[365232549,1749558651541,-219.113716,0.00024186,7]
[365232550,1749558651551,-476.81551,0.00024186,7]
[365232551,1749558651561,-476.81551,0.00024186,7]
[365232552,1749558651570,-151.0,0.00024186,7]
[365232553,1749558651580,-7639.95075468,0.00024199,2]
[365232554,1749558651589,-5000.0,0.00024199,2]
[365232555,1749558651599,-5000.0,0.00024199,2]
[365232556,1749558651609,-5000.0,0.00024199,2]
[365232557,1749558651618,-5000.0,0.00024199,2]
[365232558,1749558651627,-151.0,0.00024199,7]
[365232559,1749558651637,-151.0,0.00024199,7]
[365232560,1749558651647,-6297.06463097,0.00024199,2]
[365232561,1749558651657,-5000.0,0.00024199,2]
[365232562,1749558651666,-643.52470724,0.000242,3]
[365232563,1749558651675,-20078.40995795,0.000242,2]
[365232564,1749558651685,-2000.0,0.000242,30]
[365232565,1749558651700,-151.0,0.000242,5]
[365232566,1749558651715,-151.0,0.000242,9]
[365232567,1749558651725,-1726.53400946,0.0002421,10]
[365232568,1749558651735,-6478.71588283,0.00024264,2]
[365232569,1749558651743,-151.0,0.00024267,7]
[365232570,1749558651753,-170651.81166636,0.0002428,10]
[365232571,1749558651763,-243.787858,0.0002428,7]
[365232572,1749558651772,-151.0,0.0002428,7]
[365232573,1749558651782,-151.0,0.0002428,7]
[365232574,1749558651792,-151.0,0.0002428,7]
[365232575,1749558651802,-151.0,0.0002428,7]
[365232576,1749558651811,-322.405961,0.0002428,7]
[365232577,1749558651821,-158.054553,0.0002428,7]
[365232578,1749558651831,-151.0,0.0002428,7]
[365232579,1749558651842,-213.1263252,0.0002428,10]
[365232580,1749558651933,-151.0,0.0002428,7]
[365232581,1749558651944,-315.18454239,0.0002428,10]
[365232582,1749558651954,-229.6792923,0.0002428,7]
[365232583,1749558651966,-315.18454239,0.0002428,10]
[365232584,1749558651976,-229.6792923,0.0002428,10]
[365232585,1749558651985,-476.81551,0.0002428,7]
[365232586,1749558651995,-476.81551,0.0002428,7]
[365232587,1749558652005,-151.0,0.0002428,7]
[365232588,1749558652014,-35303.53907649,0.00024285,7]
[365232589,1749558652166,-500.0,0.00021094,2]
[365232590,1749558652176,-9298.16474557,0.00024285,7]
[365232591,1749558652670,-390.24333677,0.00021055,2]
[365232592,1749558652680,-118.41866771,0.00021055,2]
[365232593,1749558652691,-268.46692552,0.00021055,2]
[365232594,1749558652702,-113.11440677,0.00021055,2]
[365232595,1749558652712,-362.75363847,0.00021055,2]
[365232596,1749558652721,-235.99695644,0.00021055,2]
[365232597,1749558652730,-500.0,0.00021055,2]
[365232598,1749558652739,-379.71448068,0.00021055,2]
[365232599,1749558652749,-500.0,0.00021055,2]
[365232600,1749558652758,-500.0,0.00021055,2]
[365232601,1749558652767,-500.0,0.00021055,2]
[365232602,1749558652776,-500.0,0.00021055,2]
[365232603,1749558652786,-500.0,0.00021055,2]
[365232604,1749558652802,-500.0,0.00021055,2]
[365232605,1749558652811,-395.61995695,0.00021055,2]
[365232606,1749558652820,-224.30273317,0.00021055,2]
[365232607,1749558652830,-500.0,0.00021094,2]
[365232608,1749558652839,-500.0,0.00021094,2]
[365232609,1749558652850,-500.0,0.00021094,2]
[365232610,1749558652859,-500.0,0.00021094,2]
[365232611,1749558652868,-500.0,0.00021094,2]
[365232612,1749558652878,-500.0,0.00021094,2]
[365232613,1749558652889,-500.0,0.00021094,2]
[365232614,1749558652899,-500.0,0.00021094,2]
[365232615,1749558652908,-500.0,0.00021094,2]
[365232616,1749558652917,-342.09353963,0.00021094,2]
[365232617,1749558652926,-283.87676782,0.00021094,2]
[365232618,1749558652936,-460.0,0.00021095,4]
[365232619,1749558652945,-460.0,0.00021095,4]
[365232620,1749558652954,-314.88538385,0.00021369,4]
[365232621,1749558652963,-460.0,0.00021369,4]
[365232622,1749558652973,-460.0,0.00021643,4]
[365232623,1749558652982,-460.0,0.00021917,4]
[365232624,1749558652991,-460.0,0.00022191,4]
[365232625,1749558653000,-460.0,0.00022465,4]
[365232626,1749558653010,-460.0,0.00022465,4]
[365232627,1749558653019,-460.0,0.00022739,4]
[365232628,1749558653028,-310.0,0.00022739,4]
[365232629,1749558653037,-460.0,0.00023013,4]
[365232630,1749558653046,-460.0,0.00023287,4]
[365232631,1749558653056,-460.0,0.00023561,4]
[365232632,1749558653065,-460.0,0.00023835,4]
[365232633,1749558653075,-460.0,0.00024109,4]
[365232634,1749558653084,-4519.64213622,0.00024285,7]
[365232635,1749558653100,-857.33,0.00021095,4]
[365232636,1749558653110,-14567.44833832,0.00024285,7]
[365232637,1749558653119,-2000.0,0.000243,30]
[365232638,1749558653128,-229.6792923,0.000243,10]
[365232639,1749558653138,-160.0,0.000243,10]
[365232640,1749558653147,-35823.45682028,0.00024311,7]
[365232641,1749558653156,-134669.98201738,0.00024321,3]
[365232642,1749558653166,-151.0,0.00024321,7]
[365232643,1749558653175,-800.0,0.00024322,2]
[365232644,1749558653185,-3957.0,0.00024325,2]
[365232645,1749558653194,-1726.53400946,0.00024348,11]
[365232646,1749558653204,-400.45058874,0.00024354,3]
[365232647,1749558653214,-6478.71588283,0.00024379,2]
[365232648,1749558653223,-460.0,0.00024383,4]
[365232649,1749558653233,-566.48,0.00024383,2]
[365232650,1749558653242,-460.0,0.00024383,4]
[365232651,1749558653252,-158.054553,0.00024383,7]
[365232652,1749558653261,-460.0,0.00024383,4]
[365232653,1749558653271,-723.09,0.00024383,4]
[365232654,1749558653280,-2883.13,0.00024383,4]
[365232655,1749558653290,-460.0,0.00024383,4]
[365232656,1749558653300,-470.19,0.00024383,4]
[365232657,1749558653310,-460.0,0.00024383,4]
[365232658,1749558653320,-460.0,0.00024383,4]
[365232659,1749558653409,-460.0,0.00024383,4]
[365232660,1749558653420,-460.0,0.00024383,4]
[365232661,1749558653430,-460.0,0.00024383,4]
[365232662,1749558653439,-460.0,0.00024383,4]
[365232663,1749558653449,-1271.1,0.00024383,4]
[365232664,1749558653459,-460.0,0.00024383,4]
[365232665,1749558653468,-460.0,0.00024383,4]
[365232666,1749558653477,-460.0,0.00024383,4]
[365232667,1749558653487,-183.81,0.00024383,4]
[365232668,1749558653496,-460.0,0.00024383,4]